bitfinex/quotes_BTCUSD_20250829
["timestamp","ask_amount","ask_price","bid_price","bid_amount"]
[1756448292449,0.57004786,111230.0,111220.0,0.01274267]
[1756448296246,0.2205838,111230.0,111220.0,0.01274267]
[1756448296591,0.57004786,111230.0,111220.0,0.01274267]
[1756448299400,0.55068773,111230.0,111220.0,0.01274267]
[1756448304621,0.55266773,111230.0,111220.0,0.01274267]
[1756448304826,0.55266773,111230.0,111220.0,0.16706267]
[1756448306259,0.20320367,111230.0,111220.0,0.16706267]
[1756448306671,0.55266773,111230.0,111220.0,0.16706267]
[1756448306876,0.55068773,111230.0,111220.0,0.16706267]
[1756448312082,0.5487381,111230.0,111220.0,0.16706267]
[1756448312463,0.19927404,111230.0,111220.0,0.16706267]
[1756448312641,0.5487381,111230.0,111220.0,0.16706267]
[1756448313298,0.5507181,111230.0,111220.0,0.01274267]
[1756448313534,0.5507181,111230.0,111220.0,0.16163267]
[1756448313661,0.5507181,111230.0,111220.0,0.16677267]
[1756448314305,0.5507181,111230.0,111220.0,0.01277267]
[1756448314533,0.5507181,111230.0,111220.0,0.16665267]
[1756448318625,0.5507181,111230.0,111220.0,0.16135267]
[1756448318825,0.5507181,111230.0,111220.0,0.16649267]
[1756448319153,0.5777541,111230.0,111220.0,0.16649267]
[1756448321495,0.57815504,111230.0,111220.0,0.16649267]
[1756448321697,0.55464689,111230.0,111220.0,0.16649267]
[1756448323578,0.57558571,111230.0,111220.0,0.16448267]
[1756448323991,0.57558571,111230.0,111220.0,0.16649267]
[1756448334347,0.57558571,111230.0,111220.0,0.38094965]
[1756448334547,0.57558571,111230.0,111220.0,0.34631644]
[1756448334986,0.39577811,111230.0,111220.0,0.34631644]
[1756448335165,0.57558571,111230.0,111220.0,0.34631644]
[1756448335733,0.57558571,111230.0,111220.0,0.34199644]
[1756448337066,0.57558571,111230.0,111220.0,0.33899644]
[1756448337299,0.57558571,111230.0,111220.0,0.34099644]
[1756448337446,0.57558571,111230.0,111220.0,0.34199644]
[1756448337625,0.57558571,111230.0,111220.0,0.33999644]
[1756448337990,0.57558571,111230.0,111220.0,0.34299644]
[1756448338302,0.55061142,111230.0,111220.0,0.34299644]
[1756448338428,0.55061142,111230.0,111220.0,0.34399644]
[1756448341060,0.55061142,111230.0,111220.0,0.01077267]
[1756448341271,0.55061142,111230.0,111220.0,0.16417267]
[1756448343677,0.02093882,111230.0,111220.0,0.34399644]
[1756448343881,0.37080382,111230.0,111220.0,0.34399644]
[1756448344084,0.02093882,111230.0,111220.0,0.37103144]
[1756448344380,0.37080382,111230.0,111220.0,0.37103144]
[1756448347742,0.55061142,111230.0,111220.0,0.37103144]
[1756448350008,0.55061142,111230.0,111220.0,0.44019144]
[1756448351625,0.31133306,111230.0,111220.0,0.44019144]
[1756448351829,0.49114066,111230.0,111220.0,0.44019144]
[1756448352951,0.5296726,111230.0,111220.0,0.44019144]
[1756448355765,0.5296726,111230.0,111220.0,0.28679144]
[1756448355964,0.5296726,111230.0,111220.0,0.44019144]
[1756448361865,0.1798076,111230.0,111220.0,0.44019144]
[1756448362081,0.5296726,111230.0,111220.0,0.28679144]
[1756448362289,0.5296726,111230.0,111220.0,0.44015144]
[1756448362613,0.1798076,111230.0,111220.0,0.44015144]
[1756448362815,0.5296726,111230.0,111220.0,0.44015144]
[1756448365390,0.5296726,111230.0,111220.0,0.28679144]
[1756448365731,0.5296726,111230.0,111220.0,0.44015144]
[1756448366648,0.5296726,111230.0,111220.0,0.26032767]
[1756448366874,0.5296726,111230.0,111220.0,0.44015144]
[1756448368217,0.5296726,111230.0,111220.0,0.28679144]
[1756448368429,0.5296726,111230.0,111220.0,0.44015144]
[1756448369367,0.5296726,111230.0,111220.0,0.37099144]
[1756448369772,0.5296726,111230.0,111220.0,0.21763144]
[1756448369973,0.5296726,111230.0,111220.0,0.37099144]
[1756448370675,0.1798076,111230.0,111220.0,0.37099144]
[1756448370896,0.5296726,111230.0,111220.0,0.37099144]
[1756448372412,0.5296726,111230.0,111220.0,0.30539444]
[1756448372545,0.5296726,111230.0,111220.0,0.30743444]
[1756448374442,0.5296726,111230.0,111220.0,0.31038444]
[1756448374638,0.5317626,111230.0,111220.0,0.31038444]
[1756448376982,0.5296726,111230.0,111220.0,0.31038444]
[1756448378064,0.5317626,111230.0,111220.0,0.31038444]
[1756448378992,0.5317626,111230.0,111220.0,0.37954444]
[1756448381187,0.1818976,111230.0,111220.0,0.37954444]
[1756448381323,0.5317626,111230.0,111220.0,0.37954444]
[1756448381526,0.5317626,111230.0,111220.0,0.40657944]
[1756448384046,0.5296726,111230.0,111220.0,0.40657944]
[1756448384934,0.5296726,111230.0,111220.0,0.37954444]
[1756448386985,0.5317626,111230.0,111220.0,0.37954444]
[1756448389691,0.8816276,111230.0,111220.0,0.07415]
[1756448389876,0.8816276,111230.0,111220.0,0.40725377]
[1756448394562,0.8816276,111230.0,111220.0,0.25397377]
[1756448394729,0.8816276,111230.0,111220.0,0.22743]
[1756448395045,0.8816276,111230.0,111220.0,0.40725377]
[1756448395991,0.8816276,111230.0,111220.0,0.40430377]
[1756448397525,0.17982377,111220.0,111210.0,0.20687441]
[1756448397731,0.70471,111220.0,111210.0,0.20687441]
[1756448397957,0.70172,111220.0,111210.0,0.36011441]
[1756448398158,0.70172,111220.0,111210.0,0.36225441]
[1756448398385,0.70172,111220.0,111210.0,0.36011441]
[1756448399042,0.70172,111220.0,111210.0,0.36211441]
[1756448399244,0.70172,111220.0,111210.0,0.36725441]
[1756448399620,0.70172,111220.0,111210.0,0.36425441]
[1756448399763,0.69973,111220.0,111210.0,0.36730441]
[1756448399963,0.69973,111220.0,111210.0,0.37030441]
[1756448404588,0.2098326,111230.0,111210.0,0.37030441]
[1756448404742,0.69973,111220.0,111210.0,0.37030441]
[1756448405411,0.69973,111220.0,111210.0,0.36730441]
[1756448405797,0.69973,111220.0,111210.0,0.36930441]
[1756448406164,0.69973,111220.0,111210.0,0.36730441]
[1756448406570,0.69973,111220.0,111210.0,0.37030441]
[1756448407587,0.87955377,111220.0,111210.0,0.21706441]
[1756448407788,0.349865,111220.0,111210.0,0.37026441]
[1756448408134,0.69973,111220.0,111210.0,0.37026441]
[1756448408405,0.69973,111220.0,111210.0,0.21706441]
[1756448408679,0.69973,111220.0,111210.0,0.37026441]
[1756448409808,0.2068426,111230.0,111210.0,0.37026441]
[1756448410030,0.69973,111220.0,111210.0,0.37026441]
[1756448411236,0.69973,111220.0,111210.0,0.36726441]
[1756448411415,0.69973,111220.0,111210.0,0.21406441]
[1756448411619,0.69973,111220.0,111210.0,0.36926441]
[1756448412021,0.69973,111220.0,111210.0,0.36726441]
[1756448412326,0.69973,111220.0,111210.0,0.37026441]
[1756448413329,0.69973,111220.0,111210.0,0.21706441]
[1756448413477,0.69973,111220.0,111210.0,0.37026441]
[1756448413705,0.69973,111220.0,111210.0,0.37022441]
[1756448414305,0.69973,111220.0,111210.0,0.43938441]
[1756448414997,0.34199,111220.0,111210.0,0.33299941]
[1756448415221,1.04471,111220.0,111210.0,0.33299941]
[1756448415658,1.04471,111220.0,111210.0,0.15316]
[1756448415874,1.22453377,111220.0,111210.0,0.1553]
[1756448416089,0.52480377,111220.0,111210.0,0.1553]
[1756448416307,1.25156977,111220.0,111210.0,0.1553]
[1756448419792,1.071746,111220.0,111210.0,0.33513994]
[1756448419951,1.071746,111220.0,111210.0,0.33299994]
[1756448420160,1.04471,111220.0,111210.0,0.33299994]
[1756448421285,1.04471,111220.0,111210.0,0.36003594]
[1756448422765,1.22453377,111220.0,111210.0,0.180196]
[1756448424246,1.22453377,111220.0,111210.0,0.027036]
[1756448424462,1.22453377,111220.0,111210.0,0.180156]
[1756448425722,1.57439877,111220.0,111210.0,0.180156]
[1756448431536,1.57439877,111220.0,111210.0,0.180116]
[1756448433352,1.394575,111220.0,111210.0,0.35995594]
[1756448434018,1.04471,111220.0,111210.0,0.35995594]
[1756448434229,1.04471,111220.0,111210.0,0.20687594]
[1756448434532,1.394575,111220.0,111210.0,0.35991594]
[1756448435083,1.04471,111220.0,111210.0,0.35991594]
[1756448440502,1.04471,111220.0,111210.0,0.36204594]
[1756448442939,1.04471,111220.0,111210.0,0.35991594]
[1756448443694,1.04471,111220.0,111210.0,0.20687594]
[1756448443885,1.04471,111220.0,111210.0,0.35987594]
[1756448448170,1.04471,111220.0,111210.0,0.20687594]
[1756448448345,1.04471,111220.0,111210.0,0.35983594]
[1756448448751,1.04471,111220.0,111210.0,0.27603594]
[1756448448921,1.04471,111220.0,111210.0,0.42899594]
[1756448450741,0.34498,111220.0,111210.0,0.42899594]
[1756448450949,1.04471,111220.0,111210.0,0.42899594]
[1756448452174,1.04471,111220.0,111210.0,0.42895594]
[1756448452551,1.04471,111220.0,111210.0,0.27603594]
[1756448452763,1.04471,111220.0,111210.0,0.42895594]
[1756448453524,1.04471,111220.0,111210.0,0.27603594]
[1756448453740,1.04471,111220.0,111210.0,0.42895594]
[1756448456698,1.22453377,111220.0,111210.0,0.42895594]
[1756448458310,1.04471,111220.0,111210.0,0.42895594]
[1756448463178,1.04471,111220.0,111210.0,0.35979594]
[1756448463873,1.22453377,111220.0,111210.0,0.35979594]
[1756448467921,1.22453377,111220.0,111210.0,0.42895594]
[1756448468245,1.22453377,111220.0,111210.0,0.27603594]
[1756448468405,1.22453377,111220.0,111210.0,0.42883594]
[1756448468921,0.88254377,111220.0,111210.0,0.42883594]
[1756448469134,0.88453377,111220.0,111210.0,0.42883594]
[1756448469823,0.70471,111220.0,111210.0,0.42883594]
[1756448473228,0.88453377,111220.0,111210.0,0.42883594]
[1756448474359,0.88453377,111220.0,111210.0,0.42879594]
[1756448477639,0.88453377,111220.0,111210.0,0.27603594]
[1756448477837,0.88453377,111220.0,111210.0,0.42875594]
[1756448478241,0.70471,111220.0,111210.0,0.43070594]
[1756448480247,0.70471,111220.0,111210.0,0.43170594]
[1756448482076,0.70172,111220.0,111210.0,0.43170594]
[1756448482219,0.70172,111220.0,111210.0,0.43468594]
[1756448483094,0.46874339,111220.0,111210.0,0.43468594]
[1756448491593,0.00199,111220.0,111210.0,0.43468594]
[1756448491764,0.70172,111220.0,111210.0,0.43468594]
[1756448495476,0.88154377,111220.0,111210.0,0.43456594]
[1756448496282,0.53167877,111220.0,111210.0,0.43456594]
[1756448496440,0.88154377,111220.0,111210.0,0.43456594]
[1756448497820,0.70172,111220.0,111210.0,0.43456594]
[1756448498369,0.728756,111220.0,111210.0,0.43456594]
[1756448499258,0.378891,111220.0,111210.0,0.43456594]
[1756448503692,0.55871477,111220.0,111210.0,0.43456594]
[1756448505111,0.20884977,111220.0,111210.0,0.43456594]
[1756448505320,0.55871477,111220.0,111210.0,0.43456594]
[1756448514204,0.20884977,111220.0,111210.0,0.43456594]
[1756448514409,0.55871477,111220.0,111210.0,0.43456594]
[1756448518311,0.55871477,111220.0,111210.0,0.43436594]
[1756448523889,0.55871477,111220.0,111210.0,0.40732994]
[1756448525475,0.55871477,111220.0,111210.0,0.33816994]
[1756448528538,0.20884977,111220.0,111210.0,0.33816994]
[1756448528742,0.55871477,111220.0,111210.0,0.33816994]
[1756448530108,0.20884977,111220.0,111210.0,0.33816994]
[1756448530323,0.20685977,111220.0,111210.0,0.40732994]
[1756448530662,0.55672477,111220.0,111210.0,0.40732994]
[1756448531552,0.55886477,111220.0,111210.0,0.40434994]
[1756448531999,0.55886477,111220.0,111210.0,0.40758994]
[1756448533522,0.20899977,111220.0,111210.0,0.40758994]
[1756448533739,0.55886477,111220.0,111210.0,0.40758994]
[1756448534295,0.55886477,111220.0,111210.0,0.22256]
[1756448534504,0.55886477,111220.0,111210.0,0.40448994]
[1756448534810,0.55886477,111220.0,111210.0,0.40772994]
[1756448535018,0.55886477,111220.0,111210.0,0.33856994]
[1756448535781,0.90872977,111220.0,111210.0,0.15857]
[1756448536852,0.029176,111220.0,111210.0,0.33840994]
[1756448537261,0.379041,111220.0,111210.0,0.33840994]
[1756448537603,0.029176,111220.0,111210.0,0.33840994]
[1756448537813,0.379041,111220.0,111210.0,0.33840994]
[1756448539138,0.029176,111220.0,111210.0,0.33840994]
[1756448539349,0.379041,111220.0,111210.0,0.33840994]
[1756448539888,0.379041,111220.0,111210.0,0.40756994]
[1756448540623,0.379041,111220.0,111210.0,0.25532994]
[1756448540817,0.379041,111220.0,111210.0,0.40752994]
[1756448544746,0.379041,111220.0,111210.0,0.33836994]
[1756448547349,0.379041,111220.0,111210.0,0.33832994]
[1756448547861,0.029176,111220.0,111210.0,0.33832994]
[1756448548107,0.379041,111220.0,111210.0,0.33832994]
[1756448550977,0.029176,111220.0,111210.0,0.33832994]
[1756448551136,0.379041,111220.0,111210.0,0.33832994]
[1756448552365,0.029176,111220.0,111210.0,0.33832994]
[1756448552697,0.379041,111220.0,111210.0,0.33832994]
[1756448556479,0.728906,111220.0,111210.0,0.33832994]
[1756448564435,0.029176,111220.0,111210.0,0.33832994]
[1756448564625,0.728906,111220.0,111210.0,0.33832994]
[1756448569307,0.55401116,111220.0,111210.0,0.33832994]
[1756448569479,0.3769,111220.0,111210.0,0.33832994]
[1756448569888,0.3769,111220.0,111210.0,0.36536494]
[1756448572443,0.3769,111220.0,111210.0,0.21320494]
[1756448572604,0.3769,111220.0,111210.0,0.36516494]
[1756448572791,0.726765,111220.0,111210.0,0.36516494]
[1756448573249,0.726765,111220.0,111210.0,0.21320494]
[1756448573405,0.726765,111220.0,111210.0,0.36512494]
[1756448575945,0.3769,111220.0,111210.0,0.36512494]
[1756448576144,0.027035,111220.0,111210.0,0.36512494]
[1756448576380,0.3769,111220.0,111210.0,0.36512494]
[1756448577188,0.349865,111220.0,111210.0,0.36512494]
[1756448577402,0.16381615,111220.0,111210.0,0.36512494]
[1756448577533,0.32923436,111230.0,111210.0,0.36512494]
[1756448577756,0.349865,111220.0,111210.0,0.36512494]
[1756448578157,0.32599436,111230.0,111220.0,0.17982377]
[1756448578357,0.32797436,111230.0,111220.0,0.17982377]
[1756448578596,0.67783936,111230.0,111220.0,0.17982377]
[1756448579714,0.67783936,111230.0,111220.0,0.18082377]
[1756448585266,0.67783936,111230.0,111220.0,0.18182377]
[1756448586222,0.67783936,111230.0,111220.0,0.33366377]
[1756448586432,0.67783936,111230.0,111220.0,0.15384]
[1756448586638,0.68055936,111230.0,111220.0,0.002]
[1756448586890,0.67783936,111230.0,111220.0,0.15384]
[1756448587746,0.67783936,111230.0,111220.0,0.33366377]
[1756448592238,0.82963936,111230.0,111220.0,0.33366377]
[1756448593434,0.67783936,111230.0,111220.0,0.33366377]
[1756448593636,0.82963936,111230.0,111220.0,0.33366377]
[1756448596920,0.82959936,111230.0,111220.0,0.33366377]
[1756448600603,0.80256436,111230.0,111220.0,0.33366377]
[1756448600809,0.80256436,111230.0,111220.0,0.36069977]
[1756448601148,0.80256436,111230.0,111220.0,0.33366377]
[1756448601591,0.80256436,111230.0,111220.0,0.002]
[1756448602154,0.82959936,111230.0,111220.0,0.002]
[1756448606865,0.47973436,111230.0,111220.0,0.002]
[1756448607040,0.82959936,111230.0,111220.0,0.002]
[1756448618349,0.82959936,111230.0,111220.0,0.18386377]
[1756448618550,0.82959936,111230.0,111220.0,0.18686377]
[1756448621214,0.82959936,111230.0,111220.0,0.00704]
[1756448621962,0.82939936,111230.0,111220.0,0.00704]
[1756448635503,0.82939936,111230.0,111220.0,0.002]
[1756448635680,1.17926436,111230.0,111220.0,0.002]
[1756448647342,1.18198436,111230.0,111220.0,0.002]
[1756448647939,1.15222936,111230.0,111220.0,0.002]
[1756448648139,1.17926436,111230.0,111220.0,0.029036]
[1756448648369,1.18198436,111230.0,111220.0,0.002]
[1756448648574,0.96953037,111230.0,111220.0,0.002]
[1756448648758,1.14933797,111230.0,111220.0,0.002]
[1756448650548,0.44688797,111230.0,111220.0,0.002]
[1756448650753,1.14661797,111230.0,111220.0,0.002]
[1756448651620,1.14933797,111230.0,111220.0,0.002]
[1756448654526,1.14661797,111230.0,111220.0,0.002]
[1756448661182,1.14933797,111230.0,111220.0,0.002]
[1756448661392,1.14661797,111230.0,111220.0,0.002]
[1756448661591,0.94951377,111230.0,111220.0,0.002]
[1756448662357,0.97514216,111230.0,111220.0,0.002]
[1756448664510,0.97514216,111230.0,111220.0,0.029035]
[1756448667906,0.97514216,111230.0,111220.0,0.00504]
[1756448668424,1.40462848,111230.0,111220.0,0.002]
[1756448668618,1.43317033,111230.0,111220.0,0.002]
[1756448669599,1.34487401,111230.0,111220.0,0.002]
[1756448669915,1.31708216,111230.0,111220.0,0.002]
[1756448670506,1.31633216,111230.0,111220.0,0.002]
[1756448676390,1.31708216,111230.0,111220.0,0.002]
[1756448678395,1.31633216,111230.0,111220.0,0.002]
[1756448683789,1.40462848,111230.0,111220.0,0.002]
[1756448693769,1.51276731,111230.0,111220.0,0.002]
[1756448697398,1.51276731,111230.0,111220.0,0.00504]
[1756448697903,0.81303731,111230.0,111220.0,0.00504]
[1756448698122,1.51276731,111230.0,111220.0,0.00504]
[1756448700393,1.36168731,111230.0,111220.0,0.00504]
[1756448700575,1.51272731,111230.0,111220.0,0.00504]
[1756448700804,1.36168731,111230.0,111220.0,0.00504]
[1756448701100,1.51272731,111230.0,111220.0,0.00504]
[1756448703205,1.42443099,111230.0,111220.0,0.00504]
[1756448709631,1.42443099,111230.0,111220.0,0.002]
[1756448714759,1.77429599,111230.0,111220.0,0.002]
[1756448720410,1.77429599,111230.0,111220.0,0.00518]
[1756448720988,1.77429599,111230.0,111220.0,0.002]
[1756448721416,1.42443099,111230.0,111220.0,0.002]
[1756448722197,1.48310207,111230.0,111220.0,0.002]
[1756448723801,1.42443099,111230.0,111220.0,0.002]
[1756448732001,1.49359099,111230.0,111220.0,0.00518]
[1756448736076,1.49359099,111230.0,111220.0,0.002]
[1756448736635,1.84345599,111230.0,111220.0,0.002]
[1756448740057,1.84345599,111230.0,111220.0,0.00518]
[1756448743150,1.69241599,111230.0,111220.0,0.00518]
[1756448743356,1.84321599,111230.0,111220.0,0.00518]
[1756448744757,1.63637339,111230.0,111220.0,0.00518]
[1756448744959,1.81618099,111230.0,111220.0,0.00518]
[1756448745111,1.82136099,111230.0,111220.0,0.00518]
[1756448746357,1.86278975,111230.0,111220.0,0.00518]
[1756448746780,1.86278975,111230.0,111220.0,0.00728]
[1756448749599,1.95108607,111230.0,111220.0,0.00728]
[1756448752672,1.86278975,111230.0,111220.0,0.00728]
[1756448756899,1.89900638,111230.0,111220.0,0.00728]
[1756448757943,1.85757762,111230.0,111220.0,0.00728]
[1756448759929,1.85757177,111230.0,111220.0,0.00728]
[1756448760814,1.85757168,111230.0,111220.0,0.00728]
[1756448763353,1.945868,111230.0,111220.0,0.002]
[1756448764096,1.946618,111230.0,111220.0,0.002]
[1756448764678,1.945868,111230.0,111220.0,0.002]
[1756448766046,1.85757168,111230.0,111220.0,0.002]
[1756448766633,1.8575606,111230.0,111220.0,0.002]
[1756448769283,1.88535185,111230.0,111220.0,0.002]
[1756448769476,1.89165432,111230.0,111220.0,0.002]
[1756448769675,1.89240432,111230.0,111220.0,0.002]
[1756448769965,1.87558554,111230.0,111220.0,0.002]
[1756448770152,1.89240432,111230.0,111220.0,0.002]
[1756448770356,1.89165432,111230.0,111220.0,0.002]
[1756448771079,1.89165432,111230.0,111220.0,0.001]
[1756448771486,1.89265432,111230.0,111220.0,0.001]
[1756448771722,1.89465432,111230.0,111220.0,0.001]
[1756448780081,1.89464478,111230.0,111220.0,0.001]
[1756448780871,1.87152849,111230.0,111220.0,0.001]
[1756448781023,1.89464488,111230.0,111220.0,0.001]
[1756448782584,1.90384634,111230.0,111220.0,0.001]
[1756448790294,1.89464488,111230.0,111220.0,0.001]
[1756448790694,1.89464495,111230.0,111220.0,0.001]
[1756448793412,1.89464495,111230.0,111220.0,0.00395]
[1756448796035,1.89464625,111230.0,111220.0,0.00395]
[1756448796407,1.91886656,111230.0,111220.0,0.00395]
[1756448796581,2.00716288,111230.0,111220.0,0.00395]
[1756448800384,2.00716288,111230.0,111220.0,0.00597]
[1756448801499,2.00718341,111230.0,111220.0,0.00597]
[1756448802509,2.00718379,111230.0,111220.0,0.00597]
[1756448804618,2.00720784,111230.0,111220.0,0.00597]
[1756448808117,2.00720784,111230.0,111220.0,0.00395]
[1756448812052,2.0008974,111230.0,111220.0,0.00395]
[1756448812253,2.00720877,111230.0,111220.0,0.00395]
[1756448816927,2.00720877,111230.0,111220.0,0.0059]
[1756448817241,2.00720877,111230.0,111220.0,0.00395]
[1756448818846,2.00720877,111230.0,111220.0,0.0059]
[1756448821008,2.00720877,111230.0,111220.0,0.00395]
[1756448821360,2.03067459,111230.0,111220.0,0.00395]
[1756448821540,2.04750515,111230.0,111220.0,0.00395]
[1756448822463,2.04750515,111230.0,111220.0,0.0059]
[1756448823490,2.04750515,111230.0,111220.0,0.001]
[1756448824158,2.04750515,111230.0,111220.0,0.004]
[1756448826854,2.04751155,111230.0,111220.0,0.004]
[1756448828237,2.04751155,111230.0,111220.0,0.001]
[1756448829527,2.04751155,111230.0,111220.0,0.004]
[1756448832011,2.02437019,111230.0,111220.0,0.001]
[1756448832237,2.0475131,111230.0,111220.0,0.001]
[1756448836448,3.0971081,111230.0,111220.0,0.001]
[1756448839150,3.0971037,111230.0,111220.0,0.001]
[1756448842650,3.08027517,111230.0,111220.0,0.001]
[1756448842822,3.09710179,111230.0,111220.0,0.001]
[1756448844648,3.09710179,111230.0,111220.0,0.00422]
[1756448846585,3.00864363,111230.0,111220.0,0.00422]
[1756448848913,2.790004,111230.0,111220.0,0.00422]
[1756448849116,2.61893985,111230.0,111220.0,0.00422]
[1756448849743,2.61893985,111230.0,111220.0,0.001]
[1756448850146,2.38368981,111230.0,111220.0,0.001]
[1756448850351,2.38368981,111230.0,111220.0,0.00422]
[1756448851088,2.72368981,111230.0,111220.0,0.00422]
[1756448852501,2.75479247,111230.0,111220.0,0.00422]
[1756448853377,2.75479224,111230.0,111220.0,0.00422]
[1756448856547,1.93925728,111230.0,111220.0,0.00422]
[1756448858555,1.93925728,111230.0,111220.0,0.00623]
[1756448860147,1.96349451,111230.0,111220.0,0.00623]
[1756448860962,1.96349451,111230.0,111220.0,0.00422]
[1756448863176,1.75676968,111230.0,111220.0,0.00422]
[1756448863369,1.93925728,111230.0,111220.0,0.00422]
[1756448864049,1.93294736,111230.0,111220.0,0.00422]
[1756448864253,1.93925625,111230.0,111220.0,0.00422]
[1756448864957,1.93925963,111230.0,111220.0,0.00422]
[1756448866059,1.93925963,111230.0,111220.0,0.001]
[1756448866587,2.00728716,111230.0,111220.0,0.001]
[1756448867282,2.00728716,111230.0,111220.0,0.00422]
[1756448867784,1.93925963,111230.0,111220.0,0.00422]
[1756448868386,1.93926087,111230.0,111220.0,0.00422]
[1756448871269,1.93926088,111230.0,111220.0,0.00422]
[1756448873396,1.96349811,111230.0,111220.0,0.00422]
[1756448874178,1.96349811,111230.0,111220.0,0.001]
[1756448874552,1.94666778,111230.0,111220.0,0.001]
[1756448874753,1.9634999,111230.0,111220.0,0.001]
[1756448874962,1.9634999,111230.0,111220.0,0.00425]
[1756448875679,1.96349993,111230.0,111220.0,0.00425]
[1756448878247,1.91987292,111230.0,111220.0,0.00425]
[1756448878532,1.96349777,111230.0,111220.0,0.00425]
[1756448880655,1.96349777,111230.0,111220.0,0.001]
[1756448880860,1.96349777,111230.0,111220.0,0.00425]
[1756448881057,1.96349788,111230.0,111220.0,0.00425]
[1756448881971,1.96349788,111230.0,111220.0,0.00628]
[1756448883965,1.94666725,111230.0,111220.0,0.00628]
[1756448884167,1.96349794,111230.0,111220.0,0.00628]
[1756448884758,1.96349777,111230.0,111220.0,0.00628]
[1756448887789,1.96349751,111230.0,111220.0,0.00628]
[1756448887988,1.92320289,111230.0,111220.0,0.00628]
[1756448890632,1.77240289,111230.0,111220.0,0.00628]
[1756448890851,1.92252289,111230.0,111220.0,0.00628]
[1756448892363,1.9225227,111230.0,111220.0,0.00628]
[1756448894708,1.92252246,111230.0,111220.0,0.00628]
[1756448895557,1.92252245,111230.0,111220.0,0.00628]
[1756448896287,1.77240245,111230.0,111220.0,0.00628]
[1756448896423,1.92248245,111230.0,111220.0,0.00628]
[1756448897445,1.77240245,111230.0,111220.0,0.00628]
[1756448897671,1.92248245,111230.0,111220.0,0.00628]
[1756448901189,1.96315782,111230.0,111220.0,0.00628]
[1756448902948,1.46321282,111230.0,111220.0,0.00628]
[1756448903257,1.61325282,111230.0,111220.0,0.00628]
[1756448903733,1.46321282,111230.0,111220.0,0.00628]
[1756448903942,1.61325282,111230.0,111220.0,0.00628]
[1756448904567,1.46321282,111230.0,111220.0,0.00628]
[1756448904855,1.61325282,111230.0,111220.0,0.00628]
[1756448905032,1.46321282,111230.0,111220.0,0.00628]
[1756448905184,1.60694158,111230.0,111220.0,0.00628]
[1756448905385,1.61325375,111230.0,111220.0,0.00628]
[1756448906033,1.61325378,111230.0,111220.0,0.00628]
[1756448907839,1.46321378,111230.0,111220.0,0.00628]
[1756448908014,1.61325378,111230.0,111220.0,0.00628]
[1756448911286,1.46321378,111230.0,111220.0,0.00628]
[1756448911485,1.61325378,111230.0,111220.0,0.00628]
[1756448911925,1.46321378,111230.0,111220.0,0.00628]
[1756448912311,1.58546253,111230.0,111220.0,0.00628]
[1756448915658,1.58542253,111230.0,111220.0,0.00628]
[1756448915859,1.57911103,111230.0,111220.0,0.00628]
[1756448916083,1.60225536,111230.0,111220.0,0.00628]
[1756448920661,1.45225536,111230.0,111220.0,0.00628]
[1756448920983,1.60225536,111230.0,111220.0,0.00614]
[1756448921403,1.55863063,111230.0,111220.0,0.00614]
[1756448921798,1.60225809,111230.0,111220.0,0.00614]
[1756448923324,1.45225809,111230.0,111220.0,0.00614]
[1756448923492,1.60225809,111230.0,111220.0,0.00614]
[1756448926332,1.45225809,111230.0,111220.0,0.00614]
[1756448926488,1.60225809,111230.0,111220.0,0.00614]
[1756448926683,1.58542651,111230.0,111220.0,0.00614]
[1756448926904,1.45225808,111230.0,111220.0,0.00614]
[1756448927127,1.60225808,111230.0,111220.0,0.00614]
[1756448928620,1.60125808,111230.0,111220.0,0.00614]
[1756448928847,1.59925808,111230.0,111220.0,0.00614]
[1756448929048,1.60421808,111230.0,111220.0,0.00614]
[1756448929367,1.45425808,111230.0,111220.0,0.00614]
[1756448929561,1.60421808,111230.0,111220.0,0.00614]
[1756448932063,1.45425808,111230.0,111220.0,0.00614]
[1756448932272,1.60421808,111230.0,111220.0,0.00614]
[1756448932995,1.56354271,111230.0,111220.0,0.00614]
[1756448935745,1.41358271,111230.0,111220.0,0.00614]
[1756448936022,1.56354271,111230.0,111220.0,0.00614]
[1756448936800,1.56354271,111230.0,111220.0,0.25614]
[1756448937530,1.56354326,111230.0,111220.0,0.25614]
[1756448939243,1.41358326,111230.0,111220.0,0.25614]
[1756448939473,1.56354326,111230.0,111220.0,0.25614]
[1756448940486,1.56354326,111230.0,111220.0,0.25604]
[1756448940835,1.56354333,111230.0,111220.0,0.25604]
[1756448946909,1.8902643,111230.0,111220.0,0.25604]
[1756448947091,2.00785817,111230.0,111220.0,0.251]
[1756448947936,1.98090989,111230.0,111220.0,0.251]
[1756448949396,1.9403873,111230.0,111220.0,0.251]
[1756448954054,1.94038745,111230.0,111220.0,0.251]
[1756448955366,1.94038774,111230.0,111220.0,0.251]
[1756448957428,1.76058014,111230.0,111220.0,0.251]
[1756448957650,1.91614096,111230.0,111220.0,0.251]
[1756448958424,1.89929967,111230.0,111220.0,0.251]
[1756448958637,1.91614227,111230.0,111220.0,0.25421]
[1756448958845,1.91614227,111230.0,111220.0,0.251]
[1756448960033,1.56627727,111230.0,111220.0,0.251]
[1756448960457,1.91614227,111230.0,111220.0,0.25421]
[1756448961264,1.56627727,111230.0,111220.0,0.25421]
[1756448961762,1.91614227,111230.0,111220.0,0.25421]
[1756448962325,1.91614227,111230.0,111220.0,0.251]
[1756448964709,1.91614209,111230.0,111220.0,0.25421]
[1756448965617,1.57096209,111230.0,111220.0,0.25421]
[1756448966038,1.59799809,111230.0,111220.0,0.25421]
[1756448966948,1.24813309,111230.0,111220.0,0.25421]
[1756448968346,1.24813226,111230.0,111220.0,0.25635]
[1756448970167,1.23129075,111230.0,111220.0,0.25635]
[1756448970476,1.28889269,111230.0,111220.0,0.25635]
[1756448975443,1.28889218,111230.0,111220.0,0.25635]
[1756448975655,1.31314102,111230.0,111220.0,0.25635]
[1756448975807,1.31314102,111230.0,111220.0,0.25421]
[1756448976194,1.31306102,111230.0,111220.0,0.25635]
[1756448976396,1.65306102,111230.0,111220.0,0.25635]
[1756448979044,1.653061,111230.0,111220.0,0.25635]
[1756448979381,1.653061,111230.0,111220.0,0.25421]
[1756448981070,1.653061,111230.0,111220.0,0.25635]
[1756448982574,1.65306099,111230.0,111220.0,0.25635]
[1756448983010,1.65306099,111230.0,111220.0,0.25421]
[1756448983206,1.65306099,111230.0,111220.0,0.25635]